fUST/lending_fUST_20240912
["ID","MTS","AMOUNT","RATE_DAILY","PERIOD"]
[337803881,1726126264755,-500.0,0.0001726,2]
[337803882,1726126264769,-500.0,0.0001726,2]
[337803883,1726126264778,-500.0,0.0001726,2]
[337803884,1726126264787,-832.23,0.0001726,2]
[337803885,1726126264796,-500.0,0.0001726,2]
[337803886,1726126264806,-500.0,0.0001726,2]
[337803887,1726126264818,-997.48,0.0001726,2]
[337803888,1726126264828,-747.14,0.0001726,2]
[337803889,1726126264837,-334.4,0.0001726,2]
[337803890,1726126264846,-500.0,0.0001726,2]
[337803891,1726126264856,-500.0,0.0001726,2]
[337803892,1726126264866,-500.0,0.0001726,2]
[337803893,1726126264875,-500.0,0.0001726,2]
[337803894,1726126264884,-500.0,0.0001726,2]
[337803895,1726126264894,-499.49205537,0.0001726,2]
[337803896,1726126264903,-500.0,0.0001726,2]
[337803897,1726126264912,-500.0,0.0001726,2]
[337803898,1726126264922,-729.56,0.0001726,2]
[337803899,1726126264931,-500.0,0.0001726,2]
[337803900,1726126264941,-500.0,0.0001726,2]
[337803901,1726126264951,-500.0,0.0001726,2]
[337803902,1726126264960,-500.0,0.0001726,2]
[337803903,1726126264969,-500.0,0.0001726,2]
[337803904,1726126264979,-500.0,0.0001726,2]
[337803905,1726126264988,-500.0,0.0001726,2]
[337803906,1726126264998,-500.0,0.0001726,2]
[337803907,1726126265008,-500.0,0.0001726,2]
[337803908,1726126265017,-1516.84,0.0001726,2]
[337803909,1726126265026,-500.0,0.0001726,2]
[337803910,1726126265036,-512.75698522,0.0001726,2]
[337803911,1726126265045,-500.0,0.0001726,2]
[337803912,1726126265055,-500.0,0.0001726,2]
[337803913,1726126265068,-506.41,0.0001726,2]
[337803914,1726126265078,-500.0,0.0001726,2]
[337803915,1726126265087,-500.0,0.0001726,2]
[337803916,1726126265097,-500.0,0.0001726,2]
[337803917,1726126265107,-514.03,0.0001726,2]
[337803918,1726126265117,-500.0,0.0001726,2]
[337803919,1726126265127,-500.0,0.0001726,2]
[337803920,1726126265138,-500.0,0.0001726,2]
[337803921,1726126265147,-667.46,0.0001726,2]
[337803922,1726126265157,-500.0,0.0001726,2]
[337803923,1726126265166,-500.0,0.0001726,2]
[337803924,1726126265176,-500.0,0.0001726,2]
[337803925,1726126265186,-217.82886562,0.0001726,2]
[337803926,1726126265196,-500.0,0.0001726,2]
[337803927,1726126265208,-500.0,0.0001726,2]
[337803928,1726126265218,-503.32606653,0.0001726,2]
[337803929,1726126265229,-500.0,0.0001726,2]
[337803930,1726126265239,-652.1,0.0001726,2]
[337803931,1726126265250,-500.0,0.0001726,2]
[337803932,1726126265260,-500.0,0.0001726,2]
[337803933,1726126265270,-500.0,0.0001726,2]
[337803934,1726126265279,-500.0,0.0001726,2]
[337803935,1726126265291,-7723.66,0.0001726,2]
[337803936,1726126265301,-500.0,0.0001726,2]
[337803937,1726126265312,-488.64047716,0.0001726,2]
[337803938,1726126265323,-521.98,0.0001726,2]
[337803939,1726126265332,-507.77690809,0.0001726,2]
[337803940,1726126265341,-500.0,0.0001726,2]
[337803941,1726126265351,-500.0,0.0001726,2]
[337803942,1726126265360,-500.0,0.0001726,2]
[337803943,1726126265370,-787.76,0.0001726,2]
[337803944,1726126265380,-647.59,0.0001726,2]
[337803945,1726126265389,-500.0,0.0001726,2]
[337803946,1726126265399,-500.0,0.0001726,2]
[337803947,1726126265408,-500.0,0.0001726,2]
[337803948,1726126265417,-500.0,0.0001726,2]
[337803949,1726126265426,-410.99318115,0.0001726,2]
[337803950,1726126265436,-1100.14,0.0001726,2]
[337803951,1726126265447,-500.0,0.0001726,2]
[337803952,1726126265457,-500.0,0.0001726,2]
[337803953,1726126265466,-605.65,0.0001726,2]
[337803954,1726126265476,-500.0,0.0001726,2]
[337803955,1726126265485,-500.0,0.0001726,2]
[337803956,1726126265495,-219.31058878,0.0001726,2]
[337803957,1726126265504,-500.0,0.0001726,2]
[337803958,1726126265514,-500.0,0.0001726,2]
[337803959,1726126265524,-863.88,0.0001726,2]
[337803960,1726126265534,-500.0,0.0001726,2]
[337803961,1726126265543,-500.0,0.0001726,2]
[337803962,1726126265552,-500.0,0.0001726,2]
[337803963,1726126265562,-500.0,0.0001726,2]
[337803964,1726126265572,-500.0,0.0001726,2]
[337803965,1726126265582,-500.0,0.0001726,2]
[337803966,1726126265592,-500.0,0.0001726,2]
[337803967,1726126265601,-151.0,0.0001726,2]
[337803968,1726126265611,-625.41,0.0001726,2]
[337803969,1726126265620,-500.0,0.0001726,2]
[337803970,1726126265630,-500.0,0.0001726,2]
[337803971,1726126265640,-500.0,0.0001726,2]
[337803972,1726126265650,-515.61,0.0001726,2]
[337803973,1726126265661,-500.0,0.0001726,2]
[337803974,1726126265671,-567.51,0.0001726,2]
[337803975,1726126265682,-658.34,0.0001726,2]
[337803976,1726126265692,-500.0,0.0001726,2]
[337803977,1726126265702,-500.0,0.0001726,2]
[337803978,1726126265713,-500.0,0.0001726,2]
[337803979,1726126265723,-1244.31,0.0001726,2]
[337803980,1726126265733,-500.0,0.0001726,2]
[337803981,1726126265743,-500.0,0.0001726,2]
[337803982,1726126265751,-617.93,0.0001726,2]
[337803983,1726126265761,-880.87,0.0001726,2]
[337803984,1726126265770,-500.0,0.0001726,2]
[337803985,1726126265780,-500.0,0.0001726,2]
[337803986,1726126265790,-500.0,0.0001726,2]
[337803987,1726126265800,-500.0,0.0001726,2]
[337803988,1726126265809,-500.0,0.0001726,2]
[337803989,1726126265819,-500.0,0.0001726,2]
[337803990,1726126265829,-500.0,0.0001726,2]
[337803991,1726126265839,-7995.59,0.0001726,2]
[337803992,1726126265848,-500.0,0.0001726,2]
[337803993,1726126265858,-500.0,0.0001726,2]
[337803994,1726126265867,-730.56,0.0001726,2]
[337803995,1726126265877,-500.0,0.0001726,2]
[337803996,1726126265886,-643.36,0.0001726,2]
[337803997,1726126265896,-685.72,0.0001726,2]
[337803998,1726126265906,-891.8,0.0001726,2]
[337803999,1726126265916,-151.0,0.0001726,2]
[337804000,1726126265926,-896.4,0.0001726,2]
[337804001,1726126265935,-500.0,0.0001726,2]
[337804002,1726126265945,-500.0,0.0001726,2]
[337804003,1726126265954,-376.306505,0.0001726,2]
[337804004,1726126265964,-500.0,0.0001726,2]
[337804005,1726126265974,-500.0,0.0001726,2]
[337804006,1726126265984,-500.0,0.0001726,2]
[337804007,1726126265993,-500.0,0.0001726,2]
[337804008,1726126266003,-376.306505,0.0001726,2]
[337804009,1726126266013,-970.33,0.0001726,2]
[337804010,1726126266023,-151.0,0.0001726,2]
[337804011,1726126266033,-500.0,0.0001726,2]
[337804012,1726126266043,-1437.401088,0.0001726,2]
[337804013,1726126266052,-667.17,0.0001726,2]
[337804014,1726126266063,-229.029008,0.0001726,2]
[337804015,1726126266072,-500.0,0.0001726,2]
[337804016,1726126266082,-1437.401088,0.0001726,2]
[337804017,1726126266091,-517.00166629,0.0001726,2]
[337804018,1726126266101,-921.58,0.0001726,2]
[337804019,1726126266111,-500.0,0.0001726,2]
[337804020,1726126266120,-587.36,0.0001726,2]
[337804021,1726126266130,-500.0,0.0001726,2]
[337804022,1726126266139,-152.210581,0.0001726,2]
[337804023,1726126266149,-837.0,0.0001726,2]
[337804024,1726126266158,-1038.03,0.0001726,2]
[337804025,1726126266168,-151.0,0.0001726,2]
[337804026,1726126266177,-816.23,0.0001726,2]
[337804027,1726126266186,-815.49,0.0001726,2]
[337804028,1726126266196,-1205.74,0.0001726,2]
[337804029,1726126266211,-187.900087,0.0001726,2]
[337804030,1726126266221,-151.0,0.0001726,2]
[337804031,1726126266231,-500.0,0.0001726,2]
[337804032,1726126266241,-500.0,0.0001726,2]
[337804033,1726126266250,-151.0,0.0001726,2]
[337804034,1726126266260,-151.0,0.0001726,2]
[337804035,1726126266270,-187.900087,0.0001726,2]
[337804036,1726126266280,-151.0,0.0001726,2]
[337804037,1726126266290,-500.0,0.0001726,2]
[337804038,1726126266300,-1099.99,0.0001726,2]
[337804039,1726126266310,-322.339873,0.0001726,2]
[337804040,1726126266319,-545.66,0.0001726,2]
[337804041,1726126266329,-152.652947,0.0001726,2]
[337804042,1726126266338,-383.078404,0.0001726,2]
[337804043,1726126266348,-322.339873,0.0001726,2]
[337804044,1726126266358,-616.91,0.0001726,2]
[337804045,1726126266368,-151.0,0.0001726,2]
[337804046,1726126266377,-383.078404,0.0001726,2]
[337804047,1726126266388,-302.027356,0.0001726,2]
[337804048,1726126266397,-500.0,0.0001726,2]
[337804049,1726126266407,-500.0,0.0001726,2]
[337804050,1726126266416,-302.027356,0.0001726,2]
[337804051,1726126266427,-500.0,0.0001726,2]
[337804052,1726126266437,-8490.67,0.0001726,2]
[337804053,1726126266446,-500.0,0.0001726,2]
[337804054,1726126266455,-500.0,0.0001726,2]
[337804055,1726126266465,-7192.56,0.0001726,2]
[337804056,1726126266475,-2440.96,0.0001726,2]
[337804057,1726126266484,-500.0,0.0001726,2]
[337804058,1726126266493,-151.0,0.0001726,2]
[337804059,1726126266503,-2090.39,0.0001726,2]
[337804060,1726126266512,-718.38,0.0001726,2]
[337804061,1726126266522,-1515.42,0.0001726,2]
[337804062,1726126266531,-500.0,0.0001726,2]
[337804063,1726126266541,-500.0,0.0001726,2]
[337804064,1726126266550,-500.0,0.0001726,2]
[337804065,1726126266560,-314.42064648,0.0001726,2]
[337804066,1726126266569,-500.0,0.0001726,2]
[337804067,1726126266579,-6023.97,0.0001726,2]
[337804068,1726126266588,-500.0,0.0001726,2]
[337804069,1726126266598,-1456.09,0.0001726,2]
[337804070,1726126266608,-151.0,0.0001726,2]
[337804071,1726126266618,-502.76222325,0.0001726,2]
[337804072,1726126266627,-833.83,0.0001726,2]
[337804073,1726126266637,-500.0,0.0001726,2]
[337804074,1726126266647,-500.0,0.0001726,2]
[337804075,1726126266657,-1240.93,0.0001726,2]
[337804076,1726126266666,-1382.75,0.0001726,2]
[337804077,1726126266676,-591.45,0.0001726,2]
[337804078,1726126266686,-500.0,0.0001726,2]
[337804079,1726126266695,-500.0,0.0001726,2]
[337804080,1726126266704,-151.0,0.0001726,2]
[337804081,1726126266714,-726.49,0.0001726,2]
[337804082,1726126266723,-500.0,0.0001726,2]
[337804083,1726126266733,-503.08970847,0.00017273,2]
[337804084,1726126266742,-150.112233,0.000173,2]
[337804085,1726126266752,-150.112233,0.000173,2]
[337804086,1726126266762,-150.112233,0.000174,2]
[337804087,1726126266772,-150.112233,0.000175,2]
[337804088,1726126266782,-160.03653084,0.00017533,2]
[337804089,1726126266792,-500.0,0.00017534,2]
[337804090,1726126266802,-417.33809722,0.00017534,2]
[337804091,1726126266812,-500.0,0.00017534,2]
[337804092,1726126266821,-500.0,0.00017534,2]
[337804093,1726126266831,-473.88985429,0.00017534,2]
[337804094,1726126266840,-500.0,0.00017534,2]
[337804095,1726126266851,-500.0,0.00017534,2]
[337804096,1726126266861,-186.42,0.00017534,2]
[337804097,1726126266871,-500.0,0.00017534,2]
[337804098,1726126266880,-500.0,0.00017534,2]
[337804099,1726126266890,-500.0,0.00017534,2]
[337804100,1726126266900,-500.0,0.00017534,2]
[337804101,1726126266911,-500.0,0.00017534,2]
[337804102,1726126266920,-556.11,0.00017534,2]
[337804103,1726126266930,-500.0,0.00017534,2]
[337804104,1726126266939,-500.0,0.00017534,2]
[337804105,1726126266949,-572.83,0.00017534,2]
[337804106,1726126266959,-500.0,0.00017534,2]
[337804107,1726126266968,-687.88,0.00017534,2]
[337804108,1726126266978,-500.0,0.00017534,2]
[337804109,1726126266987,-500.0,0.00017534,2]
[337804110,1726126266997,-500.0,0.00017534,2]
[337804111,1726126267007,-500.0,0.00017534,2]
[337804112,1726126267017,-543.0,0.00017534,2]
[337804113,1726126267027,-500.0,0.00017534,2]
[337804114,1726126267035,-500.0,0.00017534,2]
[337804115,1726126267046,-500.0,0.00017534,2]
[337804116,1726126267056,-500.0,0.00017534,2]
[337804117,1726126267066,-500.0,0.00017534,2]
[337804118,1726126267076,-500.0,0.00017534,2]
[337804119,1726126267086,-918.59,0.00017534,2]
[337804120,1726126267095,-500.0,0.00017534,2]
[337804121,1726126267105,-685.52,0.00017534,2]
[337804122,1726126267115,-500.0,0.00017534,2]
[337804123,1726126267124,-500.0,0.00017534,2]
[337804124,1726126267134,-500.0,0.00017534,2]
[337804125,1726126267144,-500.0,0.00017534,2]
[337804126,1726126267154,-546.95,0.00017534,2]
[337804127,1726126267164,-500.0,0.00017534,2]
[337804128,1726126267173,-500.0,0.00017534,2]
[337804129,1726126267183,-500.0,0.00017534,2]
[337804130,1726126267192,-500.0,0.00017534,2]
[337804131,1726126267202,-500.0,0.00017534,2]
[337804132,1726126267215,-646.48,0.00017534,2]
[337804133,1726126267224,-500.0,0.00017534,2]
[337804134,1726126267234,-690.13,0.00017534,2]
[337804135,1726126267244,-500.0,0.00017534,2]
[337804136,1726126267257,-500.0,0.00017534,2]
[337804137,1726126267268,-500.0,0.00017534,2]
[337804138,1726126267277,-500.0,0.00017534,2]
[337804139,1726126267292,-500.0,0.00017534,2]
[337804140,1726126267303,-657.97,0.00017534,2]
[337804141,1726126267314,-1049.7,0.00017534,2]
[337804142,1726126267324,-500.0,0.00017534,2]
[337804143,1726126267335,-518.71,0.00017534,2]
[337804144,1726126267345,-500.0,0.00017534,2]
[337804145,1726126267356,-623.44,0.00017534,2]
[337804146,1726126267367,-500.0,0.00017534,2]
[337804147,1726126267378,-500.0,0.00017534,2]
[337804148,1726126267388,-500.0,0.00017534,2]
[337804149,1726126267397,-832.23,0.00017534,2]
[337804150,1726126267408,-500.0,0.00017534,2]
[337804151,1726126267421,-500.0,0.00017534,2]
[337804152,1726126267432,-997.48,0.00017534,2]
[337804153,1726126267442,-747.14,0.00017534,2]
[337804154,1726126267453,-500.0,0.00017534,2]
[337804155,1726126267463,-500.0,0.00017534,2]
[337804156,1726126267473,-500.0,0.00017534,2]
[337804157,1726126267483,-500.0,0.00017534,2]
[337804158,1726126267493,-500.0,0.00017534,2]
[337804159,1726126267503,-500.0,0.00017534,2]
[337804160,1726126267512,-500.0,0.00017534,2]
[337804161,1726126267522,-729.56,0.00017534,2]
[337804162,1726126267532,-567.80502344,0.00017534,2]
[337804163,1726126267543,-500.0,0.00017534,2]
[337804164,1726126267553,-500.0,0.00017534,2]
[337804165,1726126267563,-500.0,0.00017534,2]
[337804166,1726126267573,-500.0,0.00017534,2]
[337804167,1726126267583,-500.0,0.00017534,2]
[337804168,1726126267592,-500.0,0.00017534,2]
[337804169,1726126267603,-1516.84,0.00017534,2]
[337804170,1726126267615,-500.0,0.00017534,2]
[337804171,1726126267626,-506.41,0.00017534,2]
[337804172,1726126267636,-500.0,0.00017534,2]
[337804173,1726126267647,-500.0,0.00017534,2]
[337804174,1726126267657,-500.9524763,0.00017534,2]
[337804175,1726126267669,-514.03,0.00017534,2]
[337804176,1726126267680,-500.0,0.00017534,2]
[337804177,1726126267690,-500.0,0.00017534,2]
[337804178,1726126267699,-500.0,0.00017534,2]
[337804179,1726126267709,-667.46,0.00017534,2]
[337804180,1726126267719,-500.0,0.00017534,2]
[337804181,1726126267728,-500.0,0.00017534,2]
[337804182,1726126267739,-500.0,0.00017534,2]
[337804183,1726126267748,-500.0,0.00017534,2]
[337804184,1726126267758,-652.1,0.00017534,2]
[337804185,1726126267767,-500.0,0.00017534,2]
[337804186,1726126267778,-500.0,0.00017534,2]
[337804187,1726126267788,-508.54635727,0.00017534,2]
[337804188,1726126267800,-7723.66,0.00017534,2]
[337804189,1726126267811,-500.0,0.00017534,2]
[337804190,1726126267821,-521.98,0.00017534,2]
[337804191,1726126267831,-500.0,0.00017534,2]
[337804192,1726126267841,-500.0,0.00017534,2]
[337804193,1726126267850,-500.0,0.00017534,2]
[337804194,1726126267860,-787.76,0.00017534,2]
[337804195,1726126267869,-500.0,0.00017534,2]
[337804196,1726126267879,-500.0,0.00017534,2]
[337804197,1726126267887,-500.0,0.00017534,2]
[337804198,1726126267897,-252.64202145,0.00017534,2]
[337804199,1726126267906,-1100.14,0.00017534,2]
[337804200,1726126267915,-500.0,0.00017534,2]
[337804201,1726126267924,-500.0,0.00017534,2]
[337804202,1726126268055,-605.65,0.00017534,2]
[337804203,1726126268080,-326.67,0.00017534,2]
[337804204,1726126268091,-500.0,0.00017534,2]
[337804205,1726126268101,-710.62048,0.00017534,2]
[337804206,1726126268111,-500.0,0.00017534,2]
[337804207,1726126268120,-500.0,0.00017534,2]
[337804208,1726126268130,-710.62048,0.00017534,2]
[337804209,1726126268141,-863.88,0.00017534,2]
[337804210,1726126268150,-151.0,0.00017534,2]
[337804211,1726126268159,-500.0,0.00017534,2]
[337804212,1726126268169,-500.0,0.00017534,2]
[337804213,1726126268179,-500.0,0.00017534,2]
[337804214,1726126268189,-290.033009,0.00017534,2]
[337804215,1726126268199,-500.0,0.00017534,2]
[337804216,1726126268211,-495.146954,0.00017534,2]
[337804217,1726126268221,-527.38638977,0.00017534,2]
[337804218,1726126268231,-500.0,0.00017534,2]
[337804219,1726126268241,-495.146954,0.00017534,2]
[337804220,1726126268250,-500.0,0.00017534,2]
[337804221,1726126268260,-625.41,0.00017534,2]
[337804222,1726126268270,-500.0,0.00017534,2]
[337804223,1726126268279,-262.44,0.00017534,2]
[337804224,1726126268289,-500.0,0.00017534,2]
[337804225,1726126268298,-515.61,0.00017534,2]
[337804226,1726126268308,-500.0,0.00017534,2]
[337804227,1726126268320,-567.51,0.00017534,2]
[337804228,1726126268339,-658.34,0.00017534,2]
[337804229,1726126268348,-500.0,0.00017534,2]
[337804230,1726126268358,-500.0,0.00017534,2]
[337804231,1726126268367,-530.84,0.00017534,2]
[337804232,1726126268376,-1244.31,0.00017534,2]
[337804233,1726126268385,-500.0,0.00017534,2]
[337804234,1726126268394,-500.0,0.00017534,2]
[337804235,1726126268403,-151.0,0.00017534,2]
[337804236,1726126268414,-617.93,0.00017534,2]
[337804237,1726126268423,-880.87,0.00017534,2]
[337804238,1726126268433,-390.94,0.00017534,2]
[337804239,1726126268443,-585.94011378,0.00017534,2]
[337804240,1726126268452,-500.0,0.00017534,2]
[337804241,1726126268462,-956.229416,0.00017534,2]
[337804242,1726126268471,-151.0,0.00017534,2]
[337804243,1726126268480,-500.0,0.00017534,2]
[337804244,1726126268490,-417.85233145,0.00017534,2]
[337804245,1726126268499,-500.0,0.00017534,2]
[337804246,1726126268509,-500.0,0.00017534,2]
[337804247,1726126268518,-7995.59,0.00017534,2]
[337804248,1726126268528,-956.229416,0.00017534,2]
[337804249,1726126268538,-500.0,0.00017534,2]
[337804250,1726126268548,-500.0,0.00017534,2]
[337804251,1726126268558,-730.56,0.00017534,2]
[337804252,1726126268568,-500.0,0.00017534,2]
[337804253,1726126268577,-643.36,0.00017534,2]
[337804254,1726126268586,-685.72,0.00017534,2]
[337804255,1726126268596,-891.8,0.00017534,2]
[337804256,1726126268606,-896.4,0.00017534,2]
[337804257,1726126268616,-405.41,0.00017534,2]
[337804258,1726126268626,-500.0,0.00017534,2]
[337804259,1726126268635,-500.0,0.00017534,2]
[337804260,1726126268644,-500.0,0.00017534,2]
[337804261,1726126268654,-500.0,0.00017534,2]
[337804262,1726126268663,-970.33,0.00017534,2]
[337804263,1726126268673,-500.0,0.00017534,2]
[337804264,1726126268683,-667.17,0.00017534,2]
[337804265,1726126268693,-500.0,0.00017534,2]
[337804266,1726126268702,-921.58,0.00017534,2]
[337804267,1726126268712,-195.53399622,0.00017534,2]
[337804268,1726126268722,-500.0,0.00017534,2]
[337804269,1726126268732,-587.36,0.00017534,2]
[337804270,1726126268741,-837.0,0.00017534,2]
[337804271,1726126268752,-1038.03,0.00017534,2]
[337804272,1726126268761,-816.23,0.00017534,2]
[337804273,1726126268771,-815.49,0.00017534,2]
[337804274,1726126268781,-1205.74,0.00017534,2]
[337804275,1726126268791,-500.0,0.00017534,2]
[337804276,1726126268801,-500.0,0.00017534,2]
[337804277,1726126268814,-1099.99,0.00017534,2]
[337804278,1726126268824,-545.66,0.00017534,2]
[337804279,1726126268835,-616.91,0.00017534,2]
[337804280,1726126268845,-500.0,0.00017534,2]
[337804281,1726126268854,-500.0,0.00017534,2]
[337804282,1726126268864,-315.98844001,0.00017534,2]
[337804283,1726126268874,-8490.67,0.00017534,2]
[337804284,1726126268884,-638.51418397,0.00017534,2]
[337804285,1726126268894,-7192.56,0.00017534,2]
[337804286,1726126268904,-500.0,0.00017534,2]
[337804287,1726126268914,-2440.96,0.00017534,2]
[337804288,1726126268925,-500.0,0.00017534,2]
[337804289,1726126268935,-2090.39,0.00017534,2]
[337804290,1726126268945,-718.38,0.00017534,2]
[337804291,1726126268955,-1515.42,0.00017534,2]
[337804292,1726126268964,-500.0,0.00017534,2]
[337804293,1726126268974,-500.0,0.00017534,2]
[337804294,1726126268984,-500.0,0.00017534,2]
[337804295,1726126268994,-500.0,0.00017534,2]
[337804296,1726126269003,-6023.97,0.00017534,2]
[337804297,1726126269013,-1456.09,0.00017534,2]
[337804298,1726126269023,-833.83,0.00017534,2]
[337804299,1726126269033,-500.0,0.00017534,2]
[337804300,1726126269043,-565.4806194,0.00017534,2]
[337804301,1726126269054,-1240.93,0.00017534,2]
[337804302,1726126269065,-1382.75,0.00017534,2]
[337804303,1726126269075,-591.45,0.00017534,2]
[337804304,1726126269085,-500.0,0.00017534,2]
[337804305,1726126269095,-500.0,0.00017534,2]
[337804306,1726126269105,-726.49,0.00017534,2]
[337804307,1726126269115,-628.73,0.00017534,2]
[337804308,1726126269125,-500.0,0.00017573,2]
[337804309,1726126269134,-500.0,0.00017573,2]
[337804310,1726126269144,-500.0,0.00017573,2]
[337804311,1726126269154,-500.0,0.00017573,2]
[337804312,1726126269163,-150.112233,0.000176,2]
[337804313,1726126269173,-150.112233,0.000176,2]
[337804314,1726126269182,-150.112233,0.000178,2]
[337804315,1726126269192,-150.112233,0.000178,2]
[337804316,1726126269202,-500.0,0.00017808,2]
[337804317,1726126269215,-350.52,0.00017808,2]
[337804318,1726126269225,-500.0,0.00017808,2]
[337804319,1726126269235,-182.45,0.00017808,2]
[337804320,1726126269247,-500.0,0.00017808,2]
[337804321,1726126269258,-500.0,0.00017808,2]
[337804322,1726126269268,-500.0,0.00017808,2]
[337804323,1726126269278,-500.0,0.00017808,2]
[337804324,1726126269289,-500.0,0.00017808,2]
[337804325,1726126269299,-500.0,0.00017808,2]
[337804326,1726126269309,-556.11,0.00017808,2]
[337804327,1726126269319,-500.0,0.00017808,2]
[337804328,1726126269330,-500.0,0.00017808,2]
[337804329,1726126269341,-572.83,0.00017808,2]
[337804330,1726126269351,-602.21962202,0.00017808,2]
[337804331,1726126269360,-687.88,0.00017808,2]
[337804332,1726126269370,-500.0,0.00017808,2]
[337804333,1726126269379,-500.0,0.00017808,2]
[337804334,1726126269389,-500.0,0.00017808,2]
[337804335,1726126269399,-500.0,0.00017808,2]
[337804336,1726126269408,-543.0,0.00017808,2]
[337804337,1726126269419,-500.0,0.00017808,2]
[337804338,1726126269429,-500.0,0.00017808,2]
[337804339,1726126269439,-500.0,0.00017808,2]
[337804340,1726126269449,-500.0,0.00017808,2]
[337804341,1726126269458,-500.0,0.00017808,2]
[337804342,1726126269468,-500.0,0.00017808,2]
[337804343,1726126269478,-918.59,0.00017808,2]
[337804344,1726126269488,-500.0,0.00017808,2]
[337804345,1726126269498,-685.52,0.00017808,2]
[337804346,1726126269508,-500.0,0.00017808,2]
[337804347,1726126269517,-500.0,0.00017808,2]
[337804348,1726126269527,-500.0,0.00017808,2]
[337804349,1726126269536,-500.0,0.00017808,2]
[337804350,1726126269545,-546.95,0.00017808,2]
[337804351,1726126269554,-500.0,0.00017808,2]
[337804352,1726126269564,-500.0,0.00017808,2]
[337804353,1726126269574,-500.0,0.00017808,2]
[337804354,1726126269583,-500.0,0.00017808,2]
[337804355,1726126269592,-423.16,0.00017808,2]
[337804356,1726126269600,-500.0,0.00017808,2]
[337804357,1726126269610,-690.13,0.00017808,2]
[337804358,1726126269619,-500.0,0.00017808,2]
[337804359,1726126269629,-500.0,0.00017808,2]
[337804360,1726126269639,-495.35777247,0.00017808,2]
[337804361,1726126269648,-500.0,0.00017808,2]
[337804362,1726126269657,-500.0,0.00017808,2]
[337804363,1726126269667,-657.97,0.00017808,2]
[337804364,1726126269677,-1049.7,0.00017808,2]
[337804365,1726126269686,-500.0,0.00017808,2]
[337804366,1726126269695,-518.71,0.00017808,2]
[337804367,1726126269704,-500.0,0.00017808,2]
[337804368,1726126269713,-623.44,0.00017808,2]
[337804369,1726126269722,-505.06159621,0.00017808,2]
[337804370,1726126269732,-500.0,0.00017808,2]
[337804371,1726126269741,-500.0,0.00017808,2]
[337804372,1726126269751,-500.0,0.00017808,2]
[337804373,1726126269762,-832.23,0.00017808,2]
[337804374,1726126269771,-634.66,0.00017808,2]
[337804375,1726126269781,-997.48,0.00017808,2]
[337804376,1726126269790,-747.14,0.00017808,2]
[337804377,1726126269800,-500.0,0.00017808,2]
[337804378,1726126269809,-500.0,0.00017808,2]
[337804379,1726126269822,-622.36157942,0.00017808,2]
[337804380,1726126269831,-500.0,0.00017808,2]